fUST/lending_fUST_20250117
["ID","MTS","AMOUNT","RATE_DAILY","PERIOD"]
[349301823,1737107445064,-500.0,0.00021917,3]
[349301825,1737107445073,-500.0,0.00021917,3]
[349301827,1737107445082,-500.0,0.00021917,3]
[349301829,1737107445091,-500.0,0.00021917,3]
[349301831,1737107445103,-500.0,0.00021917,3]
[349301834,1737107445113,-500.0,0.00021917,3]
[349301836,1737107445124,-504.37229014,0.00021917,3]
[349301838,1737107445133,-500.0,0.00021917,3]
[349301839,1737107445142,-500.0,0.00021917,3]
[349301842,1737107445152,-500.0,0.00021917,3]
[349301844,1737107445161,-500.0,0.00021917,2]
[349301846,1737107445171,-561.3518422,0.00021917,3]
[349301848,1737107445181,-500.0,0.00021917,3]
[349301850,1737107445191,-500.0,0.00021917,3]
[349301852,1737107445200,-880.44,0.00021917,3]
[349301854,1737107445209,-500.0,0.00021917,3]
[349301855,1737107445219,-608.1524699,0.00021917,3]
[349301857,1737107445229,-500.0,0.00021917,3]
[349301859,1737107445238,-500.0,0.00021917,3]
[349301861,1737107445247,-500.0,0.00021917,3]
[349301863,1737107445256,-500.0,0.00021917,3]
[349301865,1737107445266,-500.0,0.00021917,3]
[349301867,1737107445275,-500.0,0.00021917,3]
[349301869,1737107445285,-500.0,0.00021917,3]
[349301871,1737107445294,-500.0,0.00021917,3]
[349301873,1737107445303,-500.0,0.00021917,3]
[349301875,1737107445312,-614.21,0.00021917,3]
[349301877,1737107445322,-329.16893507,0.00021917,3]
[349301879,1737107445331,-500.0,0.00021917,3]
[349301881,1737107445340,-500.0,0.00021917,3]
[349301883,1737107445349,-500.0,0.00021917,3]
[349301885,1737107445358,-500.0,0.00021917,3]
[349301887,1737107445367,-500.0,0.00021917,3]
[349301889,1737107445377,-1479.95,0.00021917,3]
[349301891,1737107445387,-500.0,0.00021917,3]
[349301893,1737107445396,-271.12939732,0.00021917,3]
[349301895,1737107445405,-500.0,0.00021917,3]
[349301897,1737107445415,-500.0,0.00021917,3]
[349301899,1737107445424,-500.0,0.00021917,3]
[349301901,1737107445433,-500.0,0.00021917,3]
[349301902,1737107445443,-547.19,0.00021917,3]
[349301904,1737107445453,-500.0,0.00021917,3]
[349301906,1737107445463,-500.0,0.00021917,3]
[349301908,1737107445473,-500.0,0.00021917,3]
[349301910,1737107445483,-500.0,0.00021917,3]
[349301912,1737107445492,-500.0,0.00021917,3]
[349301914,1737107445502,-500.0,0.00021917,3]
[349301916,1737107445511,-500.0,0.00021917,3]
[349301918,1737107445521,-509.93413684,0.00021917,3]
[349301920,1737107445530,-631.12,0.00021917,3]
[349301922,1737107445539,-500.0,0.00021917,3]
[349301924,1737107445549,-500.0,0.00021917,3]
[349301926,1737107445559,-501.92152736,0.00021917,3]
[349301928,1737107445569,-500.0,0.00021917,3]
[349301930,1737107445578,-500.0,0.00021917,3]
[349301932,1737107445588,-500.0,0.00021917,3]
[349301934,1737107445598,-500.0,0.00021917,3]
[349301936,1737107445607,-500.0,0.00021917,3]
[349301938,1737107445617,-503.0518058,0.00021917,3]
[349301940,1737107445626,-703.62,0.00021917,3]
[349301942,1737107445636,-500.0,0.00021917,3]
[349301944,1737107445647,-500.0,0.00021917,3]
[349301946,1737107445656,-500.0,0.00021917,3]
[349301948,1737107445666,-500.0,0.00021917,3]
[349301950,1737107445675,-502.25412724,0.00021917,3]
[349301952,1737107445685,-516.99,0.00021917,3]
[349301954,1737107445694,-500.0,0.00021917,3]
[349301956,1737107445704,-500.0,0.00021917,3]
[349301958,1737107445713,-501.62632194,0.00021917,3]
[349301960,1737107445724,-500.0,0.00021917,3]
[349301962,1737107445732,-500.0,0.00021917,3]
[349301964,1737107445742,-500.0,0.00021917,3]
[349301966,1737107445751,-500.8376935,0.00021917,3]
[349301968,1737107445760,-500.0,0.00021917,3]
[349301970,1737107445771,-500.0,0.00021917,3]
[349301972,1737107445780,-500.34003361,0.00021917,3]
[349301974,1737107445789,-500.0,0.00021917,3]
[349301976,1737107445799,-500.0,0.00021917,3]
[349301978,1737107445808,-500.0,0.00021917,3]
[349301980,1737107445818,-500.0,0.00021917,3]
[349301982,1737107445827,-500.0,0.00021917,3]
[349301984,1737107445836,-500.0,0.00021917,3]
[349301986,1737107445845,-500.0,0.00021917,3]
[349301988,1737107445855,-500.0,0.00021917,3]
[349301990,1737107445864,-500.0,0.00021917,3]
[349301992,1737107445873,-854.16,0.00021917,3]
[349301994,1737107445883,-500.0,0.00021917,3]
[349301996,1737107445892,-500.0,0.00021917,3]
[349301998,1737107445901,-500.0,0.00021917,3]
[349302000,1737107445910,-5079.07,0.00021917,3]
[349302002,1737107445920,-500.0,0.00021917,3]
[349302004,1737107445930,-500.0,0.00021917,3]
[349302006,1737107445940,-500.0,0.00021917,3]
[349302008,1737107445949,-500.0,0.00021917,3]
[349302010,1737107445958,-500.0,0.00021917,3]
[349302012,1737107445968,-500.0,0.00021917,3]
[349302014,1737107445978,-3545.99,0.00021917,3]
[349302016,1737107445987,-515.9839948,0.00021917,3]
[349302018,1737107445996,-503.62050777,0.00021917,3]
[349302020,1737107446006,-500.0,0.00021917,3]
[349302022,1737107446017,-500.0,0.00021917,3]
[349302024,1737107446027,-500.0,0.00021917,3]
[349302026,1737107446036,-500.0,0.00021917,3]
[349302028,1737107446046,-504.70878124,0.00021917,3]
[349302030,1737107446056,-621.7870154,0.00021917,2]
[349302032,1737107446066,-500.0,0.00021917,3]
[349302036,1737107446076,-505.09821929,0.00021917,3]
[349302038,1737107446085,-500.0,0.00021917,3]
[349302039,1737107446095,-6485.38,0.00021917,3]
[349302041,1737107446108,-550.49926093,0.00021917,3]
[349302043,1737107446117,-500.0,0.00021917,3]
[349302045,1737107446126,-263.56556624,0.00021917,3]
[349302047,1737107446135,-530.66087987,0.00021917,2]
[349302049,1737107446146,-500.0,0.00021917,3]
[349302051,1737107446156,-500.0,0.00021917,3]
[349302053,1737107446166,-500.0,0.00021917,3]
[349302055,1737107446177,-500.0,0.00021917,3]
[349302058,1737107446187,-500.0,0.00021917,3]
[349302061,1737107446197,-501.18236668,0.00021917,3]
[349302063,1737107446207,-500.0,0.00021917,3]
[349302065,1737107446216,-500.0,0.00021917,3]
[349302067,1737107446227,-500.0,0.00021917,3]
[349302069,1737107446236,-500.0,0.00021917,3]
[349302070,1737107446245,-500.0,0.00021917,3]
[349302073,1737107446255,-501.32530202,0.00021917,3]
[349302075,1737107446265,-9545.37262414,0.00021954,3]
[349302077,1737107446278,-500.0,0.00022047,2]
[349302079,1737107446287,-500.0,0.00022053,2]
[349302082,1737107446297,-500.0,0.00022053,2]
[349302085,1737107446306,-500.0,0.00022053,2]
[349302087,1737107446315,-500.0,0.00022053,2]
[349302090,1737107446325,-500.0,0.00022053,2]
[349302091,1737107446334,-500.0,0.00022053,2]
[349302094,1737107446344,-500.0,0.00022053,2]
[349302096,1737107446353,-500.0,0.00022053,2]
[349302098,1737107446362,-500.0,0.00022053,2]
[349302100,1737107446372,-500.0,0.00022053,2]
[349302102,1737107446381,-500.0,0.00022053,2]
[349302104,1737107446391,-500.0,0.00022053,2]
[349302106,1737107446400,-500.0,0.00022053,2]
[349302108,1737107446410,-500.0,0.00022053,2]
[349302110,1737107446419,-500.0,0.00022053,2]
[349302112,1737107446429,-500.0,0.00022053,2]
[349302114,1737107446439,-500.0,0.00022053,2]
[349302116,1737107446450,-500.0,0.00022053,2]
[349302118,1737107446460,-500.0,0.00022053,2]
[349302120,1737107446469,-500.0,0.00022053,2]
[349302122,1737107446480,-500.0,0.00022053,2]
[349302124,1737107446490,-500.0,0.00022053,2]
[349302126,1737107446499,-504.4621917,0.00022053,2]
[349302128,1737107446508,-500.0,0.00022053,2]
[349302130,1737107446518,-529.21431947,0.00022053,2]
[349302132,1737107446527,-500.0,0.00022053,2]
[349302134,1737107446537,-500.0,0.00022053,2]
[349302136,1737107446546,-500.0,0.00022053,2]
[349302138,1737107446555,-500.0,0.00022053,2]
[349302140,1737107446565,-500.0,0.00022053,2]
[349302142,1737107446574,-500.0,0.00022053,2]
[349302144,1737107446584,-500.0,0.00022053,2]
[349302147,1737107446594,-500.0,0.00022053,2]
[349302149,1737107446604,-500.0,0.00022053,2]
[349302151,1737107446614,-325.23516621,0.00022053,2]
[349302153,1737107446625,-500.0,0.00022053,2]
[349302155,1737107446635,-500.0,0.00022053,2]
[349302157,1737107446644,-500.0,0.00022053,2]
[349302159,1737107446654,-500.0,0.00022053,2]
[349302161,1737107446664,-500.0,0.00022053,2]
[349302163,1737107446673,-500.0,0.00022053,2]
[349302165,1737107446683,-435.48976426,0.00022053,2]
[349302167,1737107446692,-500.0,0.00022053,2]
[349302169,1737107446702,-500.0,0.00022053,2]
[349302171,1737107446712,-500.0,0.00022053,2]
[349302173,1737107446721,-500.0,0.00022053,2]
[349302175,1737107446731,-25926.04886821,0.00022054,5]
[349302177,1737107446741,-5065.22121492,0.00022054,5]
[349302179,1737107446750,-500.0,0.00022054,3]
[349302181,1737107446759,-500.0,0.00022054,3]
[349302183,1737107446769,-500.0,0.00022054,3]
[349302185,1737107446778,-467.48299665,0.00022054,3]
[349302187,1737107446788,-500.0,0.00022054,3]
[349302189,1737107446799,-502.77758132,0.00022054,3]
[349302191,1737107446808,-500.0,0.00022054,3]
[349302193,1737107446818,-500.0,0.00022054,3]
[349302195,1737107446827,-500.0,0.00022054,3]
[349302197,1737107446836,-305.19755397,0.00022054,3]
[349302199,1737107446845,-500.0,0.00022054,3]
[349302201,1737107446855,-477.63,0.00022054,3]
[349302203,1737107446864,-500.0,0.00022054,3]
[349302205,1737107446874,-500.0,0.00022054,3]
[349302207,1737107446883,-500.0,0.00022054,3]
[349302209,1737107446892,-518.79,0.00022054,3]
[349302211,1737107446902,-500.0,0.00022054,3]
[349302214,1737107446911,-332.5,0.00022054,3]
[349302216,1737107446920,-202.63,0.00022054,3]
[349302218,1737107446929,-500.0,0.00022054,3]
[349302220,1737107446939,-1714.98,0.00022054,3]
[349302222,1737107446948,-500.0,0.00022054,3]
[349302224,1737107446958,-500.0,0.00022054,3]
[349302226,1737107446970,-401.82,0.00022054,3]
[349302228,1737107446980,-299.07,0.00022054,3]
[349302230,1737107446990,-278.8,0.00022054,3]
[349302232,1737107446999,-360.69,0.00022054,3]
[349302233,1737107447009,-500.0,0.00022054,3]
[349302234,1737107447019,-561.27,0.00022054,3]
[349302235,1737107447028,-601.76,0.00022054,3]
[349302236,1737107447038,-500.0,0.00022054,3]
[349302237,1737107447047,-500.0,0.00022054,2]
[349302238,1737107447057,-500.0,0.00022054,3]
[349302239,1737107447067,-514.04987842,0.00022054,3]
[349302240,1737107447077,-500.0,0.00022054,3]
[349302241,1737107447086,-500.0,0.00022054,3]
[349302242,1737107447096,-500.0,0.00022054,3]
[349302243,1737107447109,-500.0,0.00022054,3]
[349302244,1737107447118,-500.0,0.00022054,3]
[349302245,1737107447128,-500.0,0.00022054,3]
[349302246,1737107447137,-500.0,0.00022054,3]
[349302247,1737107447147,-500.0,0.00022054,3]
[349302249,1737107447157,-500.0,0.00022054,3]
[349302251,1737107447167,-500.0,0.00022054,3]
[349302252,1737107447177,-1962.95,0.00022054,3]
[349302253,1737107447187,-3281.86,0.00022054,3]
[349302254,1737107447196,-548.09,0.00022054,3]
[349302255,1737107447206,-500.0,0.00022054,3]
[349302256,1737107447215,-500.0,0.00022054,3]
[349302257,1737107447225,-615.69,0.00022054,3]
[349302258,1737107447235,-188.22,0.00022054,3]
[349302259,1737107447244,-500.0,0.00022054,3]
[349302260,1737107447254,-500.0,0.00022054,3]
[349302261,1737107447263,-508.456621,0.00022054,3]
[349302262,1737107447272,-500.0,0.00022054,3]
[349302263,1737107447282,-500.0,0.00022054,2]
[349302264,1737107447292,-527.41,0.00022054,3]
[349302269,1737107447401,-500.0,0.00022054,3]
[349302271,1737107447411,-880.44,0.00022054,3]
[349302273,1737107447421,-454.85,0.00022054,3]
[349302275,1737107447431,-439.88,0.00022054,3]
[349302277,1737107447439,-500.0,0.00022054,3]
[349302278,1737107447449,-500.0,0.00022054,3]
[349302280,1737107447458,-500.0,0.00022054,3]
[349302282,1737107447469,-515.26078332,0.00022054,3]
[349302284,1737107447479,-500.0,0.00022054,3]
[349302286,1737107447489,-500.0,0.00022054,3]
[349302288,1737107447499,-500.0,0.00022054,3]
[349302290,1737107447508,-500.0,0.00022054,3]
[349302291,1737107447518,-500.0,0.00022054,3]
[349302293,1737107447527,-500.0,0.00022054,3]
[349302295,1737107447536,-1479.95,0.00022054,3]
[349302296,1737107447546,-500.0,0.00022054,3]
[349302297,1737107447556,-500.0,0.00022054,3]
[349302298,1737107447566,-500.0,0.00022054,3]
[349302299,1737107447575,-500.0,0.00022054,3]
[349302300,1737107447585,-500.0,0.00022054,3]
[349302301,1737107447595,-500.0,0.00022054,3]
[349302302,1737107447604,-500.0,0.00022054,3]
[349302304,1737107447613,-307.22,0.00022054,3]
[349302306,1737107447624,-474.44886112,0.00022054,3]
[349302308,1737107447634,-500.0,0.00022054,3]
[349302310,1737107447643,-500.0,0.00022054,3]
[349302312,1737107447653,-500.0,0.00022054,3]
[349302314,1737107447663,-500.0,0.00022054,3]
[349302316,1737107447672,-500.0,0.00022054,3]
[349302318,1737107447682,-703.62,0.00022054,3]
[349302319,1737107447691,-500.0,0.00022054,3]
[349302321,1737107447700,-500.0,0.00022054,3]
[349302323,1737107447709,-500.0,0.00022054,3]
[349302324,1737107447718,-500.0,0.00022054,3]
[349302325,1737107447728,-500.0,0.00022054,3]
[349302327,1737107447738,-500.0,0.00022054,3]
[349302329,1737107447747,-500.0,0.00022054,3]
[349302331,1737107447756,-500.0,0.00022054,3]
[349302333,1737107447766,-500.0,0.00022054,3]
[349302334,1737107447775,-500.0,0.00022054,3]
[349302336,1737107447784,-500.0,0.00022054,3]
[349302338,1737107447793,-500.0,0.00022054,3]
[349302340,1737107447803,-500.0,0.00022054,3]
[349302342,1737107447812,-500.0,0.00022054,3]
[349302343,1737107447821,-500.0,0.00022054,3]
[349302345,1737107447830,-854.16,0.00022054,3]
[349302346,1737107447839,-500.0,0.00022054,3]
[349302347,1737107447848,-500.0,0.00022054,3]
[349302348,1737107447857,-5079.07,0.00022054,3]
[349302349,1737107447867,-500.0,0.00022054,3]
[349302350,1737107447875,-500.0,0.00022054,3]
[349302351,1737107447884,-500.0,0.00022054,3]
[349302352,1737107447894,-500.0,0.00022054,3]
[349302353,1737107447903,-3545.99,0.00022054,3]
[349302354,1737107447913,-500.0,0.00022054,3]
[349302355,1737107447922,-500.0,0.00022054,3]
[349302356,1737107447932,-500.0,0.00022054,3]
[349302357,1737107447941,-500.0,0.00022054,3]
[349302358,1737107447950,-500.0,0.00022054,3]
[349302359,1737107447959,-6485.38,0.00022054,3]
[349302361,1737107447969,-500.0,0.00022054,3]
[349302362,1737107447979,-513.77078094,0.00022054,3]
[349302363,1737107447989,-500.0,0.00022054,3]
[349302364,1737107447999,-500.0,0.00022054,3]
[349302365,1737107448008,-500.56651287,0.00022111,2]
[349302366,1737107448018,-500.0,0.00022111,2]
[349302367,1737107448028,-223.05396183,0.00022167,2]
[349302368,1737107448037,-153.49,0.00022191,3]
[349302369,1737107448047,-500.0,0.00022191,3]
[349302370,1737107448056,-500.0,0.00022191,3]
[349302371,1737107448066,-500.0,0.00022191,3]
[349302372,1737107448075,-500.0,0.00022191,3]
[349302373,1737107448085,-1714.98,0.00022191,3]
[349302374,1737107448095,-500.0,0.00022191,3]
[349302375,1737107448108,-500.0,0.00022191,3]
[349302376,1737107448117,-497.2556,0.00022191,3]
[349302377,1737107448127,-601.76,0.00022191,3]
[349302378,1737107448137,-500.0,0.00022191,2]
[349302379,1737107448147,-500.0,0.00022191,3]
[349302380,1737107448156,-500.0,0.00022191,3]
[349302381,1737107448167,-500.0,0.00022191,3]
[349302382,1737107448177,-1962.95,0.00022191,3]
[349302383,1737107448188,-3281.86,0.00022191,3]
[349302384,1737107448199,-500.0,0.00022191,3]
[349302385,1737107448209,-500.0,0.00022191,3]
[349302386,1737107448219,-880.44,0.00022191,3]
[349302387,1737107448231,-275.85,0.00022191,3]
[349302388,1737107448241,-1479.95,0.00022191,3]
[349302389,1737107448251,-173.15,0.00022191,3]
[349302390,1737107448261,-500.0,0.00022191,3]
[349302391,1737107448271,-703.62,0.00022191,3]
[349302392,1737107448280,-500.0,0.00022191,3]
[349302393,1737107448290,-500.0,0.00022191,3]
[349302394,1737107448299,-584.35,0.00022191,3]
[349302395,1737107448309,-854.16,0.00022191,3]
[349302396,1737107448318,-5079.07,0.00022191,3]
[349302397,1737107448329,-3545.99,0.00022191,3]
[349302398,1737107448338,-500.0,0.00022191,3]
[349302399,1737107448347,-6485.38,0.00022191,3]
[349302400,1737107448357,-533.16,0.00022191,3]
[349302401,1737107448367,-500.0,0.00022191,3]
[349302402,1737107448377,-3988.6083285,0.0002228,2]
[349302403,1737107448386,-620.0,0.000223,2]
[349302404,1737107448395,-500.0,0.00022328,3]
[349302405,1737107448405,-500.0,0.00022328,3]
[349302406,1737107448415,-540.88,0.00022328,3]
[349302407,1737107448424,-500.0,0.00022328,3]
[349302408,1737107448434,-1714.98,0.00022328,3]
[349302409,1737107448443,-500.0,0.00022328,3]
[349302410,1737107448452,-292.21904948,0.00022328,3]
[349302411,1737107448462,-601.76,0.00022328,3]
[349302412,1737107448472,-500.0,0.00022328,2]
[349302413,1737107448484,-500.0,0.00022328,3]
[349302414,1737107448493,-500.0,0.00022328,3]
[349302415,1737107448503,-500.0,0.00022328,3]
[349302416,1737107448513,-1962.95,0.00022328,3]
[349302417,1737107448523,-3281.86,0.00022328,3]
[349302418,1737107448533,-500.0,0.00022328,3]
[349302419,1737107448542,-500.0,0.00022328,3]
[349302420,1737107448552,-880.44,0.00022328,3]
[349302421,1737107448561,-1479.95,0.00022328,3]
[349302422,1737107448571,-500.0,0.00022328,3]
[349302423,1737107448581,-703.62,0.00022328,3]
[349302424,1737107448590,-613.19603759,0.00022328,3]
[349302425,1737107448599,-500.0,0.00022328,3]
[349302426,1737107448609,-854.16,0.00022328,3]
[349302427,1737107448619,-5079.07,0.00022328,3]
[349302428,1737107448629,-3545.99,0.00022328,3]
[349302429,1737107448639,-500.0,0.00022328,3]
[349302430,1737107448648,-6485.38,0.00022328,3]
[349302431,1737107448658,-500.0,0.00022328,3]
[349302432,1737107448668,-300.0,0.000224,10]
[349302433,1737107448677,-500.0,0.00022465,3]
[349302434,1737107448687,-500.0,0.00022465,3]
[349302435,1737107448696,-1714.98,0.00022465,3]
[349302436,1737107448706,-326.3132979,0.00022465,3]
[349302437,1737107448715,-601.76,0.00022465,3]
[349302438,1737107448727,-500.0,0.00022465,2]
[349302439,1737107448737,-296.2,0.00022465,3]
[349302440,1737107448747,-500.0,0.00022465,3]
[349302441,1737107448755,-500.0,0.00022465,3]
[349302442,1737107448765,-1962.95,0.00022465,3]
[349302443,1737107448774,-3281.86,0.00022465,3]
[349302444,1737107448787,-500.0,0.00022465,3]
[349302445,1737107448797,-500.0,0.00022465,3]
[349302446,1737107448806,-880.44,0.00022465,3]
[349302447,1737107448816,-1479.95,0.00022465,3]
[349302448,1737107448825,-500.0,0.00022465,3]
[349302449,1737107448834,-703.62,0.00022465,3]
[349302450,1737107448843,-500.0,0.00022465,3]
[349302451,1737107448852,-854.16,0.00022465,3]
[349302452,1737107448862,-5079.07,0.00022465,3]
[349302453,1737107448872,-3545.99,0.00022465,3]
[349302454,1737107448882,-6485.38,0.00022465,3]
[349302455,1737107448893,-500.0,0.00022465,3]
[349302456,1737107448902,-500.0,0.00022465,3]
[349302457,1737107448912,-421.912,0.0002249,2]
[349302458,1737107448922,-427.53280661,0.000225,2]
[349302459,1737107448932,-2990.47047813,0.000225,2]
[349302460,1737107448942,-34649.24436763,0.0002258,60]
[349302461,1737107448952,-500.0,0.00022602,3]
[349302462,1737107448962,-500.0,0.00022602,3]
[349302463,1737107448971,-1714.98,0.00022602,3]
[349302464,1737107448981,-601.76,0.00022602,3]
[349302465,1737107448991,-209.14704014,0.00022602,2]
[349302466,1737107449001,-500.0,0.00022602,3]
[349302467,1737107449011,-500.0,0.00022602,3]
[349302468,1737107449023,-1962.95,0.00022602,3]
[349302469,1737107449034,-3281.86,0.00022602,3]
[349302470,1737107449044,-500.0,0.00022602,3]
[349302471,1737107449054,-500.0,0.00022602,3]
[349302472,1737107449063,-880.44,0.00022602,3]
[349302473,1737107449073,-1479.95,0.00022602,3]
[349302474,1737107449083,-500.0,0.00022602,3]
[349302475,1737107449092,-703.62,0.00022602,3]
[349302476,1737107449106,-500.0,0.00022602,3]
[349302477,1737107449116,-854.16,0.00022602,3]
[349302478,1737107449126,-5079.07,0.00022602,3]
[349302479,1737107449136,-3545.99,0.00022602,3]
[349302480,1737107449146,-6485.38,0.00022602,3]
[349302481,1737107449156,-500.0,0.00022602,3]
[349302482,1737107449166,-500.0,0.00022602,3]
[349302483,1737107449176,-153.0,0.00022681,2]
[349302484,1737107449186,-500.0,0.00022739,3]
[349302485,1737107449196,-500.0,0.00022739,3]
[349302486,1737107449205,-1714.98,0.00022739,3]
[349302487,1737107449215,-601.76,0.00022739,3]
[349302488,1737107449224,-256.11074316,0.00022739,3]
[349302489,1737107449234,-500.0,0.00022739,3]
[349302490,1737107449243,-1962.95,0.00022739,3]
[349302491,1737107449252,-3281.86,0.00022739,3]
[349302492,1737107449261,-500.0,0.00022739,3]
[349302493,1737107449271,-500.0,0.00022739,3]
[349302494,1737107449282,-880.44,0.00022739,3]
[349302495,1737107449291,-1479.95,0.00022739,3]
[349302496,1737107449301,-500.0,0.00022739,3]
[349302497,1737107449311,-703.62,0.00022739,3]
[349302498,1737107449320,-500.0,0.00022739,3]
[349302499,1737107449331,-854.16,0.00022739,3]
[349302500,1737107449340,-5079.07,0.00022739,3]
[349302501,1737107449351,-3545.99,0.00022739,3]
[349302502,1737107449360,-500.0,0.00022739,3]
[349302503,1737107449370,-6485.38,0.00022739,3]
[349302504,1737107449380,-500.0,0.00022739,3]
[349302505,1737107449390,-153.65,0.00022742,2]
[349302506,1737107449399,-1200.0,0.00022847,2]
[349302507,1737107449409,-945.77105671,0.0002287,2]
[349302508,1737107449419,-500.0,0.00022876,3]
[349302509,1737107449429,-500.0,0.00022876,3]
[349302510,1737107449438,-1714.98,0.00022876,3]
[349302511,1737107449448,-601.76,0.00022876,3]
[349302512,1737107449458,-500.0,0.00022876,3]
[349302513,1737107449467,-3281.86,0.00022876,3]
[349302514,1737107449477,-1962.95,0.00022876,3]
[349302515,1737107449487,-500.0,0.00022876,3]
[349302516,1737107449497,-500.0,0.00022876,3]
[349302517,1737107449507,-880.44,0.00022876,3]
[349302518,1737107449517,-1479.95,0.00022876,3]
[349302519,1737107449527,-500.0,0.00022876,3]
[349302520,1737107449537,-703.62,0.00022876,3]
[349302521,1737107449547,-500.0,0.00022876,3]
[349302522,1737107449556,-854.16,0.00022876,3]
[349302523,1737107449566,-5079.07,0.00022876,3]
[349302524,1737107449576,-3545.99,0.00022876,3]
[349302525,1737107449586,-500.0,0.00022876,3]
[349302526,1737107449595,-6485.38,0.00022876,3]
[349302527,1737107449604,-500.0,0.00022876,3]
[349302528,1737107449613,-215.1460779,0.00022999,2]
[349302529,1737107449624,-500.0,0.00022999,2]
[349302530,1737107449634,-428.68095582,0.00022999,2]
[349302531,1737107449643,-7438.69753278,0.00023,2]
[349302532,1737107449653,-339098.23888263,0.00023,2]
[349302533,1737107449663,-1000.0,0.00023,23]
[349302534,1737107449672,-200.0,0.00023,3]
[349302535,1737107449682,-200.0,0.00023,6]
[349302536,1737107449692,-2961.93445573,0.00023,7]
[349302537,1737107449702,-595.0144527,0.00023,2]
[349302538,1737107449712,-379.42632576,0.00023,14]
[349302539,1737107449721,-7438.69753278,0.00023,3]
[349302540,1737107449731,-500.0,0.00023013,3]
[349302541,1737107449740,-500.0,0.00023013,3]
[349302542,1737107449750,-1714.98,0.00023013,3]
[349302543,1737107449759,-601.76,0.00023013,3]
[349302544,1737107449768,-500.0,0.00023013,3]
[349302545,1737107449777,-3281.86,0.00023013,3]
[349302546,1737107449787,-1962.95,0.00023013,3]
[349302547,1737107449797,-500.0,0.00023013,3]
[349302548,1737107449807,-579.7405077,0.00023013,3]
[349302549,1737107449816,-880.44,0.00023013,3]
[349302550,1737107449826,-1479.95,0.00023013,3]
[349302551,1737107449835,-500.0,0.00023013,3]
[349302552,1737107449845,-703.62,0.00023013,3]
[349302553,1737107449855,-500.0,0.00023013,3]
[349302554,1737107449864,-854.16,0.00023013,3]
[349302555,1737107449873,-5079.07,0.00023013,3]
[349302556,1737107449882,-3545.99,0.00023013,3]
[349302557,1737107449892,-500.0,0.00023013,3]
[349302558,1737107449901,-6485.38,0.00023013,3]
[349302559,1737107449910,-500.0,0.0002315,3]
[349302560,1737107449920,-500.0,0.0002315,3]
[349302561,1737107449929,-1714.98,0.0002315,3]
[349302562,1737107449938,-601.76,0.0002315,3]
[349302563,1737107449948,-500.0,0.0002315,3]
[349302564,1737107449957,-3281.86,0.0002315,3]
[349302565,1737107449966,-1962.95,0.0002315,3]
[349302566,1737107449976,-304.35005481,0.0002315,3]
[349302567,1737107449985,-880.44,0.0002315,3]
[349302568,1737107449995,-1479.95,0.0002315,3]